bitfinex-derivatives/quotes_BTCF0:USTF0_20251215
["timestamp","ask_amount","ask_price","bid_price","bid_amount"]
[1765819454363,0.01317381,86306.0,86305.0,0.630227]
[1765819454763,0.01017381,86306.0,86305.0,0.632227]
[1765819455869,0.00017381,86306.0,86305.0,0.632227]
[1765819456073,0.00017381,86306.0,86305.0,0.66058577]
[1765819456374,8.129e-05,86307.0,86306.0,0.80627]
[1765819456566,0.0115857,86315.0,86314.0,0.6302258]
[1765819456872,0.1015857,86315.0,86314.0,0.6302258]
[1765819457069,0.7418357,86315.0,86314.0,0.61864]
[1765819457966,0.09,86315.0,86314.0,0.61864]
[1765819459960,0.09,86315.0,86314.0,0.73449538]
[1765819460164,0.00017381,86323.0,86322.0,0.6302247]
[1765819460361,0.08017381,86323.0,86322.0,0.6302247]
[1765819461175,0.08017381,86323.0,86322.0,0.72126075]
[1765819461375,0.08117381,86323.0,86322.0,0.72126075]
[1765819461577,0.08317381,86323.0,86322.0,0.72126075]
[1765819462671,0.04829394,86323.0,86322.0,0.72126075]
[1765819464173,0.04829394,86323.0,86322.0,0.74966322]
[1765819467680,3.94e-06,86323.0,86322.0,1.59382787]
[1765819467874,0.00231649,86338.0,86337.0,0.6302227]
[1765819468172,0.14231649,86338.0,86337.0,0.8178527]
[1765819469979,0.14231649,86338.0,86337.0,0.8188527]
[1765819470379,0.01231649,86338.0,86337.0,0.8198527]
[1765819470692,0.00231649,86338.0,86337.0,0.8198527]
[1765819471676,0.00231649,86338.0,86337.0,0.84817202]
[1765819472277,0.2499695,86361.0,86355.0,0.6488902]
[1765819472278,0.6309707,86356.0,86355.0,0.6488902]
[1765819472478,0.81994607,86356.0,86355.0,0.6488902]
[1765819473577,0.82194607,86356.0,86355.0,0.63731]
[1765819473886,0.61939,86351.0,86350.0,0.648891]
[1765819474087,0.78939,86351.0,86350.0,0.648891]
[1765819474485,0.8180411,86351.0,86350.0,0.63731]
[1765819474691,0.8180411,86351.0,86350.0,0.65300078]
[1765819475082,0.8180411,86351.0,86350.0,0.66458178]
[1765819475083,0.8190411,86351.0,86350.0,0.66458178]
[1765819475284,0.8190411,86351.0,86350.0,0.01569078]
[1765819475484,0.61939,86348.0,86347.0,0.0001737]
[1765819475693,0.82961987,86348.0,86347.0,0.0001737]
[1765819475880,0.82961987,86348.0,86347.0,0.01627968]
[1765819476388,0.46847,86348.0,86347.0,0.75587506]
[1765819476591,0.46847,86348.0,86347.0,0.66517108]
[1765819476592,0.78939,86348.0,86347.0,0.66517108]
[1765819477098,0.17,86348.0,86347.0,0.7566347]
[1765819478081,0.46847,86348.0,86347.0,0.7566347]
[1765819478283,0.17,86348.0,86347.0,0.7566347]
[1765819478684,0.78939,86348.0,86347.0,0.7566347]
[1765819479289,0.78939,86348.0,86347.0,0.4334133]
[1765819479493,0.78939,86348.0,86347.0,0.1077433]
[1765819479695,0.78939,86348.0,86347.0,0.7450533]
[1765819480180,0.46847,86348.0,86347.0,0.7450533]
[1765819480377,0.78939,86348.0,86347.0,0.7450533]
[1765819480884,0.81782982,86348.0,86347.0,0.01627968]
[1765819481893,0.78939,86348.0,86347.0,0.01627968]
[1765819482790,0.79139,86348.0,86347.0,0.01627968]
[1765819482991,0.61939,86331.0,86330.0,0.98590245]
[1765819483191,0.19573,86346.0,86330.0,0.18763]
[1765819483392,0.61939,86331.0,86330.0,0.99748605]
[1765819483598,0.61939,86331.0,86330.0,0.85211527]
[1765819484189,0.61939,86331.0,86330.0,0.94626409]
[1765819484399,0.61939,86331.0,86330.0,0.74705049]
[1765819485401,0.61939,86331.0,86330.0,0.74905049]
[1765819485699,0.61939,86331.0,86330.0,0.11174049]
[1765819485895,0.61939,86331.0,86330.0,0.01959167]
[1765819486100,0.61939,86331.0,86322.0,0.1038956]
[1765819486101,0.6309746,86323.0,86322.0,0.1038956]
[1765819486291,0.6309746,86323.0,86322.0,0.0001737]
[1765819486491,0.6309755,86316.0,86315.0,0.1037219]
[1765819486694,0.61939,86315.0,86314.0,0.1037219]
[1765819486885,0.61939,86313.0,86312.0,0.1037219]
[1765819487096,0.61939,86311.0,86310.0,0.1037219]
[1765819487300,0.61939,86309.0,86308.0,0.119128]
[1765819487600,0.61939,86309.0,86308.0,0.0154061]
[1765819487797,0.6309766,86308.0,86307.0,0.1037219]
[1765819488303,0.61939,86308.0,86307.0,0.65278559]
[1765819489405,0.62039,86308.0,86307.0,0.65278559]
[1765819489700,0.62039,86308.0,86307.0,0.66437229]
[1765819489701,0.62239,86308.0,86307.0,0.66437229]
[1765819490090,0.62139,86308.0,86307.0,0.66437229]
[1765819490291,0.004,86308.0,86307.0,0.66437229]
[1765819491104,0.004,86308.0,86307.0,0.80958296]
[1765819491400,0.004,86308.0,86307.0,0.66437229]
[1765819491701,0.0001738,86317.0,86316.0,0.6488955]
[1765819492998,0.0021738,86317.0,86316.0,0.6488955]
[1765819493204,0.3100537,86330.0,86329.0,0.6488938]
[1765819493400,0.7709737,86330.0,86329.0,0.6488938]
[1765819494010,0.75939,86330.0,86329.0,0.6488938]
[1765819494303,0.14,86330.0,86329.0,0.6488938]
[1765819494799,0.14,86330.0,86329.0,0.74351745]
[1765819495397,0.14,86330.0,86329.0,0.84758244]
[1765819496903,0.14,86330.0,86329.0,0.75295879]
[1765819497698,0.14,86330.0,86329.0,0.6488938]
[1765819499195,0.14,86330.0,86329.0,0.74373076]
[1765819500212,0.00017371,86338.0,86337.0,0.8304727]
[1765819500505,0.6309735,86331.0,86330.0,0.10405888]
[1765819500707,0.6309742,86326.0,86325.0,0.10405888]
[1765819500903,0.6309746,86323.0,86322.0,0.10405888]
[1765819501204,0.61939,86322.0,86321.0,0.0001738]
[1765819502812,0.61939,86322.0,86321.0,0.6236738]
[1765819503419,0.002,86323.0,86322.0,0.6350847]
[1765819503712,0.6216847,86322.0,86321.0,0.0001738]
[1765819504214,0.6236847,86322.0,86321.0,0.0001738]
[1765819504511,0.6216865,86309.0,86308.0,0.31719]
[1765819504713,0.6101,86309.0,86308.0,0.6235]
[1765819505105,0.30191,86309.0,86308.0,0.6235]
[1765819505505,0.30191,86309.0,86308.0,0.70669176]
[1765819505707,0.30191,86309.0,86308.0,0.6235]
[1765819506110,0.6101,86309.0,86308.0,0.70669176]
[1765819506415,0.6101,86309.0,86308.0,0.6235]
[1765819507516,0.6216865,86309.0,86308.0,0.6255]
[1765819507819,0.6216865,86309.0,86308.0,0.6275]
[1765819508213,0.6101,86309.0,86308.0,0.6265]
[1765819508414,0.6101,86309.0,86308.0,0.6245]
[1765819508612,0.6101,86309.0,86308.0,0.6255]
[1765819509117,0.6101,86309.0,86308.0,0.002]
[1765819509312,0.6101,86309.0,86300.0,3.8e-06]
[1765819509313,0.03,86309.0,86300.0,3.8e-06]
[1765819509510,0.03,86309.0,86265.0,0.186]
[1765819509511,0.6101,86287.0,86286.0,0.10405888]
[1765819509711,0.6216901,86282.0,86281.0,0.10405888]
[1765819509910,0.6216901,86282.0,86274.0,1.89380633]
[1765819509911,0.6101,86281.0,86280.0,0.10405888]
[1765819510213,0.6101,86278.0,86277.0,0.10405888]
[1765819510412,0.6101,86278.0,86274.0,1.5]
[1765819510413,0.6101,86275.0,86274.0,1.5171203]
[1765819511408,0.313501,86275.0,86274.0,1.5171203]
[1765819511608,0.313501,86275.0,86274.0,1.5181203]
[1765819511816,0.621691,86275.0,86274.0,1.5181203]
[1765819512116,0.621691,86275.0,86274.0,1.5171203]
[1765819512918,0.6101,86275.0,86274.0,1.5171203]
[1765819513111,0.6216903,86281.0,86280.0,0.8095]
[1765819513319,0.621691,86275.0,86274.0,1.5171203]
[1765819513507,0.001,86275.0,86274.0,1.5171203]
[1765819514105,0.6216904,86280.0,86279.0,0.6235]
[1765819514310,0.30191,86280.0,86279.0,0.6235]
[1765819514510,0.002,86281.0,86280.0,0.8210904]
[1765819514705,0.002,86281.0,86280.0,0.8095]
[1765819514920,0.6102738,86286.0,86285.0,0.6235]
[1765819515514,0.6101,86281.0,86280.0,0.8095]
[1765819515822,0.3020838,86286.0,86285.0,0.6235]
[1765819516010,0.0001738,86286.0,86285.0,0.6235]
[1765819516312,0.6102738,86286.0,86285.0,0.6235]
[1765819516507,0.0001738,86286.0,86285.0,0.6235]
[1765819516919,0.0115878,86300.0,86299.0,0.6235]
[1765819517113,0.3734978,86300.0,86299.0,0.6235]
[1765819517318,0.6816878,86300.0,86299.0,0.31719]
[1765819517515,0.30191,86291.0,86290.0,0.8095]
[1765819517909,0.0001738,86299.0,86290.0,0.8095]
[1765819518223,0.0501738,86299.0,86291.0,0.6235]
[1765819518419,0.30191,86295.0,86294.0,0.6235]
[1765819518614,0.3020838,86299.0,86298.0,0.6235]
[1765819518815,0.0501738,86299.0,86298.0,0.6235]
[1765819519522,0.3636716,86299.0,86298.0,0.6235]
[1765819520123,0.0501738,86299.0,86298.0,0.6235]
[1765819520425,0.0531738,86299.0,86298.0,0.6235]
[1765819520625,0.0541738,86299.0,86298.0,0.6235]
[1765819520825,0.0521738,86299.0,86298.0,0.6235]
[1765819521021,0.6122738,86299.0,86298.0,0.6235]
[1765819521227,0.6101,86298.0,86297.0,0.6235]
[1765819521429,0.0021738,86299.0,86298.0,0.6350879]
[1765819521614,0.0021738,86299.0,86298.0,0.6235]
[1765819522614,0.0011738,86299.0,86298.0,0.6245]
[1765819523421,0.0001738,86299.0,86298.0,0.6235]
[1765819523618,0.6101,86319.0,86318.0,0.6235]
[1765819523820,0.7901,86319.0,86318.0,0.6235]
[1765819524220,0.18,86319.0,86318.0,0.6235]
[1765819524928,0.00017371,86327.0,86326.0,0.6235]
[1765819524929,0.01175781,86327.0,86326.0,0.6235]
[1765819525113,0.19175781,86327.0,86326.0,0.6235]
[1765819526619,0.19275781,86327.0,86326.0,0.6235]
[1765819527423,0.19375781,86327.0,86326.0,0.6235]
[1765819528415,0.80385781,86327.0,86326.0,0.6235]
[1765819528621,0.80385781,86327.0,86320.0,0.8095]
[1765819528622,0.6216848,86321.0,86320.0,0.8095]
[1765819528820,0.6816848,86321.0,86320.0,0.8095]
[1765819529021,0.06,86321.0,86320.0,0.8095]
[1765819530532,0.00017371,86327.0,86326.0,0.6164642]
[1765819530826,0.04017371,86327.0,86326.0,0.6164642]
[1765819531029,0.64737371,86327.0,86326.0,0.29813]
[1765819531231,0.64737371,86327.0,86326.0,0.60488]
[1765819531624,0.04017371,86327.0,86326.0,0.60588]
[1765819532136,0.04017371,86327.0,86326.0,0.60488]
[1765819532337,0.04117371,86327.0,86326.0,0.60488]
[1765819533630,0.61805,86321.0,86320.0,0.81641]
[1765819533830,0.61822371,86327.0,86326.0,0.63041]
[1765819534027,0.04175771,86327.0,86326.0,0.63041]
[1765819534226,0.65980771,86327.0,86326.0,0.63041]
[1765819535036,0.66080771,86327.0,86326.0,0.63041]
[1765819535826,0.33923771,86327.0,86326.0,0.63041]
[1765819536228,0.32765371,86327.0,86326.0,0.63041]
[1765819536434,0.03217371,86327.0,86326.0,0.63041]
[1765819536638,0.03017371,86327.0,86326.0,0.63041]
[1765819537724,0.64822371,86327.0,86326.0,0.63041]
[1765819538436,0.6296348,86321.0,86320.0,0.81641]
[1765819539336,0.6296348,86321.0,86320.0,0.827995]
[1765819539523,0.00017371,86327.0,86320.0,0.186]
[1765819539839,0.03175771,86327.0,86326.0,0.63041]
[1765819540829,0.64980771,86327.0,86326.0,0.63041]
[1765819541229,0.6296348,86321.0,86320.0,0.002]
[1765819541424,0.6296348,86321.0,86320.0,0.001]
[1765819541933,0.6296362,86311.0,86310.0,0.8165838]
[1765819542439,0.0115862,86311.0,86310.0,0.8165838]
[1765819543025,0.3060662,86311.0,86310.0,0.8165838]
[1765819543238,0.6296362,86311.0,86310.0,0.6305838]
[1765819543440,0.6296362,86311.0,86310.0,0.0001738]
[1765819543634,0.6316362,86311.0,86310.0,0.0001738]
[1765819543940,0.6316362,86311.0,86310.0,0.6305838]
[1765819544325,0.6316362,86311.0,86310.0,0.8155338]
[1765819544838,0.002,86311.0,86310.0,0.8155338]
[1765819545037,0.001,86311.0,86310.0,0.8271201]
[1765819545242,0.002,86311.0,86310.0,0.8155338]
[1765819545443,0.29648,86311.0,86310.0,0.8155338]
[1765819545637,0.62005,86311.0,86310.0,0.8155338]
[1765819546143,0.61805,86311.0,86310.0,0.8155338]
[1765819546343,0.61805,86311.0,86310.0,0.0001738]
[1765819547439,0.0115861,86312.0,86311.0,0.63041]
[1765819548437,0.3060661,86312.0,86311.0,0.63041]
[1765819548846,0.6296361,86312.0,86311.0,0.63041]
[1765819549046,0.0125861,86312.0,86311.0,0.63041]
[1765819549235,0.3070661,86312.0,86311.0,0.63041]
[1765819549430,0.001,86312.0,86311.0,0.6419962]
[1765819550147,0.0115831,86335.0,86326.0,0.63041]
[1765819550345,0.07017371,86327.0,86326.0,0.63041]
[1765819554746,0.0115848,86321.0,86320.0,0.18495]
[1765819554948,0.6296358,86314.0,86313.0,0.08333157]
[1765819555151,0.6296362,86311.0,86310.0,0.0001738]
[1765819556252,0.6326362,86311.0,86310.0,0.0001738]
[1765819556838,0.6316362,86311.0,86310.0,0.0001738]
[1765819557248,0.6336362,86311.0,86310.0,0.0001738]
[1765819558048,0.6326362,86311.0,86310.0,0.0001738]
[1765819558444,0.629637,86305.0,86304.0,0.08333157]
[1765819558643,0.6296373,86303.0,86302.0,0.08333157]
[1765819558951,0.6296375,86301.0,86300.0,0.08333157]
[1765819559350,0.6296375,86301.0,86300.0,0.40232157]
[1765819559743,0.6296375,86301.0,86300.0,0.08333157]
[1765819560263,0.6296375,86301.0,86300.0,0.31899]
[1765819560948,0.6296375,86301.0,86299.0,0.71374157]
[1765819560949,0.61805,86300.0,86299.0,0.71374157]
[1765819561348,0.61805,86300.0,86299.0,0.40232157]
[1765819561750,0.001,86301.0,86300.0,0.80104]
[1765819561951,0.0001738,86309.0,86308.0,0.61516]
[1765819562254,0.3133438,86309.0,86308.0,0.61516]
[1765819562455,0.6268538,86309.0,86308.0,0.61516]
[1765819562656,0.62668,86304.0,86303.0,0.69847195]
[1765819563258,0.6382671,86304.0,86303.0,0.69847195]
[1765819564256,0.6382671,86304.0,86302.0,0.08331195]
[1765819564257,0.62668,86303.0,86302.0,0.08331195]
[1765819564457,0.62668,86300.0,86299.0,0.08331195]
[1765819564851,0.62668,86298.0,86297.0,0.08331195]
[1765819565260,0.62668,86298.0,86297.0,0.05978255]
[1765819565752,0.001,86300.0,86299.0,0.61516]
[1765819565953,0.0115875,86302.0,86299.0,0.61516]
[1765819566161,0.0115875,86302.0,86301.0,0.61516]
[1765819566659,0.3272938,86309.0,86308.0,0.61516]
[1765819566660,0.6268538,86309.0,86308.0,0.61516]
[1765819566865,0.6384403,86309.0,86308.0,0.29958]
[1765819567752,0.6268538,86309.0,86308.0,0.61516]
[1765819567956,0.0001738,86309.0,86308.0,0.61516]
[1765819568157,0.0021738,86309.0,86308.0,0.61516]
[1765819568459,0.0021738,86309.0,86307.0,0.0115867]
[1765819568460,0.3247542,86326.0,86325.0,0.61516]
[1765819568759,0.8282642,86326.0,86325.0,0.61516]
[1765819568958,0.19,86326.0,86325.0,0.61516]
[1765819571270,0.19,86326.0,86325.0,0.61616]
[1765819571763,0.19,86326.0,86325.0,0.61716]
[1765819572763,0.0115833,86333.0,86332.0,0.61516]
[1765819572964,0.2015833,86333.0,86332.0,0.61516]
[1765819574163,0.19,86333.0,86332.0,0.61516]
[1765819574362,0.081,86333.0,86332.0,0.61516]
[1765819574862,0.0596444,86333.0,86332.0,0.61516]
[1765819576561,0.0596444,86333.0,86328.0,0.18588]
[1765819576562,0.62668,86329.0,86328.0,0.80104]
[1765819576762,0.00017371,86334.0,86320.0,0.48546]
[1765819576763,0.6382648,86321.0,86320.0,0.48546]
[1765819576969,0.6382648,86321.0,86320.0,0.80104]
[1765819577463,0.0115848,86321.0,86320.0,0.80104]
[1765819577660,0.3247545,86324.0,86323.0,0.29958]
[1765819577871,0.011584,86328.0,86327.0,0.61516]
[1765819578169,0.0115836,86331.0,86328.0,0.18588]
[1765819578465,0.0115836,86331.0,86330.0,0.61516]
[1765819580870,0.00017371,86334.0,86333.0,0.61516]
[1765819581064,0.09017371,86334.0,86333.0,0.61516]
[1765819581964,0.09017371,86334.0,86320.0,0.43367846]
[1765819581965,0.09017371,86334.0,86325.0,0.61516]
[1765819582156,0.09017371,86334.0,86326.0,0.0115842]
[1765819582359,0.09017371,86334.0,86333.0,0.61516]
[1765819582360,0.41492681,86334.0,86333.0,0.61516]
[1765819583266,0.72843681,86334.0,86333.0,0.61516]
[1765819584171,0.72843681,86334.0,86317.0,0.0001738]
[1765819584172,0.6382653,86318.0,86317.0,0.0001738]
[1765819585969,0.6392653,86318.0,86317.0,0.0001738]
[1765819586471,0.6412653,86318.0,86317.0,0.0001738]
[1765819587072,0.6412653,86318.0,86317.0,0.8012138]
[1765819587268,0.62968,86318.0,86317.0,0.8012138]
[1765819587470,0.003,86318.0,86317.0,0.8012138]
[1765819589571,0.002,86318.0,86317.0,0.8012138]
[1765819589773,0.002,86318.0,86317.0,0.8022138]
[1765819590075,0.72796,86330.0,86329.0,0.58737]
[1765819590390,0.29211691,86334.0,86333.0,0.59458]
[1765819590566,0.47211691,86334.0,86333.0,0.59458]
[1765819590761,0.47211691,86334.0,86328.0,0.17407]
[1765819590762,0.25,86347.0,86328.0,0.17407]
[1765819590961,0.0115794,86362.0,86347.0,0.59458]
[1765819591270,0.56877,86341.0,86340.0,0.76865]
[1765819591479,0.2919415,86346.0,86345.0,0.59458]
[1765819591774,0.35036,86346.0,86345.0,0.59458]
[1765819592068,0.63877,86346.0,86345.0,0.61255826]
[1765819593276,0.64277,86346.0,86345.0,0.61255826]
[1765819593477,0.074,86346.0,86345.0,0.61255826]
[1765819595868,0.6857015,86346.0,86345.0,0.61255826]
[1765819596074,0.074,86346.0,86345.0,0.61255826]
[1765819599175,0.67412,86346.0,86345.0,0.61255826]
[1765819599373,0.67412,86346.0,86345.0,0.01797826]
[1765819599575,0.6117026,86338.0,86337.0,0.60798369]
[1765819599771,0.6117026,86338.0,86337.0,0.62589003]
[1765819600971,0.6117026,86338.0,86337.0,0.01808003]
[1765819600972,0.6127026,86338.0,86337.0,0.01808003]
[1765819601363,0.9735026,86338.0,86337.0,0.01808003]
[1765819603268,0.60012,86321.0,86320.0,0.08321279]
[1765819603572,0.611705,86320.0,86318.0,0.08321279]
[1765819603772,0.6117054,86317.0,86316.0,0.08321279]
[1765819604080,0.6117067,86307.0,86306.0,0.10405888]
[1765819604372,0.60012,86305.0,86304.0,0.10405888]
[1765819604572,0.60012,86305.0,86298.0,0.36329136]
[1765819604573,0.60012,86303.0,86302.0,0.10405888]
[1765819604778,0.6117078,86299.0,86298.0,0.10655024]
[1765819604970,0.6117078,86299.0,86298.0,0.00249136]
[1765819605570,1.3896278,86299.0,86298.0,0.00249136]
[1765819605880,0.6617078,86299.0,86298.0,0.02030086]
[1765819606080,1.3896278,86299.0,86298.0,0.02230086]
[1765819606281,0.65012,86299.0,86298.0,0.33263086]
[1765819606471,0.0615878,86299.0,86298.0,0.63011086]
[1765819606778,0.3740478,86299.0,86298.0,0.63011086]
[1765819606980,0.6617078,86299.0,86298.0,0.63211086]
[1765819608181,0.65012,86299.0,86298.0,0.63211086]
[1765819609482,0.65012,86299.0,86298.0,0.02430086]
[1765819609684,0.65012,86299.0,86298.0,0.33463086]
[1765819609882,0.65012,86299.0,86298.0,0.63211086]
[1765819611574,0.65012,86299.0,86298.0,0.33463086]
[1765819611773,0.65012,86299.0,86298.0,0.02430086]
[1765819614285,0.60012,86274.0,86273.0,0.31047129]
[1765819614484,0.96092,86274.0,86273.0,0.31047129]
[1765819614685,0.96092,86274.0,86273.0,0.01785308]
[1765819615789,0.96092,86274.0,86273.0,0.02085308]
[1765819616386,0.96092,86274.0,86273.0,0.02385308]
[1765819617488,0.6117122,86266.0,86265.0,0.0001738]
[1765819617685,1.7006322,86266.0,86265.0,0.0001738]
[1765819617883,1.7006322,86266.0,86265.0,0.01800941]
[1765819618085,1.7006322,86266.0,86265.0,0.0001738]
[1765819618483,1.70075053,86266.0,86265.0,0.01816627]
[1765819619982,0.3240532,86259.0,86258.0,0.31264864]
[1765819620288,1.4130532,86259.0,86258.0,0.62757041]
[1765819620780,1.4130532,86259.0,86258.0,0.01976041]
[1765819622178,1.0099832,86259.0,86258.0,0.32534041]
[1765819622378,1.7382632,86259.0,86258.0,0.32534041]
[1765819624789,1.7382632,86259.0,86258.0,0.02076041]
[1765819626986,1.72667,86259.0,86258.0,0.61181041]
[1765819627291,0.99839,86259.0,86258.0,0.61181041]
[1765819627493,1.72679,86259.0,86258.0,0.61181041]
[1765819627688,1.1292,86259.0,86258.0,0.61181041]
[1765819627998,1.07719,86259.0,86258.0,0.61181041]
[1765819628986,0.00011833,86266.0,86258.0,0.61181041]
[1765819628987,0.00011833,86266.0,86265.0,0.59105]
[1765819629196,0.0115886,86293.0,86265.0,0.59105]
[1765819629197,0.06152065,86317.0,86315.0,0.59105]
[1765819629395,0.33689074,86316.0,86315.0,0.59105]
[1765819629594,0.19869074,86316.0,86301.0,0.34472]
[1765819629892,0.02809269,86315.0,86302.0,0.11585404]
[1765819630087,0.17059,86316.0,86302.0,0.11585404]
[1765819630287,0.02809055,86315.0,86314.0,0.59105]
[1765819630785,0.004,86316.0,86315.0,0.6026357]
[1765819631191,0.03170133,86316.0,86315.0,0.6026357]
[1765819631389,0.004,86316.0,86315.0,0.6026357]
[1765819631778,0.65544065,86337.0,86336.0,0.30458]
[1765819631993,0.87303437,86337.0,86336.0,0.30458]
[1765819632193,0.81151372,86337.0,86336.0,0.32284174]
[1765819632497,0.81151372,86337.0,86336.0,0.01808793]
[1765819632680,0.59392,86329.0,86328.0,0.0001738]
[1765819632880,1.39091372,86329.0,86328.0,0.0001738]
[1765819633187,1.46461466,86329.0,86328.0,0.01888665]
[1765819633692,1.40249752,86329.0,86328.0,0.01888665]
[1765819633994,1.51249752,86329.0,86328.0,0.01888665]
[1765819635395,1.51449752,86329.0,86328.0,0.01888665]
[1765819635594,1.51749752,86329.0,86328.0,0.01888665]
[1765819635887,1.51749752,86329.0,86328.0,0.0001738]
[1765819638185,1.59952505,86329.0,86328.0,0.0001738]
[1765819638391,1.51749752,86329.0,86328.0,0.0001738]
[1765819639090,1.59952505,86329.0,86328.0,0.0001738]
[1765819639294,1.51749752,86329.0,86328.0,0.0001738]
[1765819639487,0.6055046,86323.0,86322.0,0.3608]
[1765819639696,0.79309832,86323.0,86322.0,0.3608]
[1765819639999,0.49638372,86323.0,86322.0,0.97005728]
[1765819640200,1.22542372,86323.0,86322.0,0.97005728]
[1765819640392,0.49638372,86323.0,86322.0,0.97005728]
[1765819640590,0.05759372,86323.0,86322.0,0.97005728]
[1765819641096,0.06059372,86323.0,86322.0,0.97005728]
[1765819641491,0.03059372,86323.0,86322.0,1.37005728]
[1765819641694,0.00706432,86323.0,86322.0,1.37005728]
[1765819642090,0.06232899,86334.0,86332.0,0.6026334]
[1765819642295,0.17232899,86334.0,86333.0,0.95185]
[1765819642495,0.11,86334.0,86333.0,0.95185]
[1765819642802,0.00017367,86345.0,86337.0,0.6026327]
[1765819642996,0.03231649,86338.0,86337.0,0.9634327]
[1765819643801,0.03231649,86338.0,86337.0,0.95185]
[1765819644903,0.03531649,86338.0,86337.0,0.95185]
[1765819645197,0.03731649,86338.0,86337.0,0.95185]
[1765819647296,0.17059,86316.0,86300.0,0.3608]
[1765819647493,0.30879,86300.0,86293.0,0.00010551]
[1765819647696,0.0115882,86297.0,86296.0,0.59105]
[1765819647901,0.6055082,86297.0,86296.0,0.59105]
[1765819648104,0.6055081,86297.0,86296.0,0.59105]
[1765819648296,0.59392,86294.0,86293.0,0.01817199]
[1765819648495,0.59392,86294.0,86293.0,0.02317199]
[1765819649601,1.31552,86294.0,86293.0,0.02317199]
[1765819649908,1.31552,86294.0,86293.0,0.01817199]
[1765819650411,1.31552,86294.0,86293.0,0.01917199]
[1765819650608,1.35552,86294.0,86293.0,0.01917199]
[1765819650793,1.35552,86294.0,86293.0,0.01817199]
[1765819653504,0.6926095,86286.0,86285.0,0.0001738]
[1765819653710,1.0534095,86286.0,86285.0,0.0001738]
[1765819654510,1.05353009,86286.0,86285.0,0.01935673]
[1765819654704,1.05353009,86286.0,86285.0,0.0011738]
[1765819654901,1.05353009,86286.0,86285.0,0.01911555]
[1765819655107,1.05353009,86286.0,86268.0,0.45266]
[1765819655108,0.6926118,86269.0,86268.0,0.3608]
[1765819655503,0.6926118,86269.0,86268.0,1.06404]
[1765819655905,0.3664828,86262.0,86261.0,0.70324]
[1765819656110,0.35489,86262.0,86261.0,0.70324]
[1765819656406,0.68102,86261.0,86260.0,0.14455377]
[1765819656605,1.04182,86261.0,86260.0,0.14455377]
[1765819656804,0.68102,86259.0,86258.0,0.00231864]
[1765819657203,0.52447257,86259.0,86258.0,0.00231864]
[1765819657709,0.3608,86261.0,86257.0,2.41e-06]
[1765819657710,0.6926133,86258.0,86257.0,2.41e-06]
[1765819658010,0.6926138,86254.0,86253.0,0.0001738]
[1765819658210,1.7835738,86254.0,86253.0,0.0001738]
[1765819658801,1.7935738,86254.0,86253.0,0.0001738]
[1765819659902,1.7935738,86254.0,86253.0,0.01863657]
[1765819660107,1.7935738,86254.0,86253.0,0.0031738]
[1765819660310,1.7935738,86254.0,86253.0,0.0051738]
[1765819660901,1.7935738,86254.0,86253.0,0.02388881]
[1765819661206,1.7935738,86254.0,86253.0,0.0051738]
[1765819662404,1.7935738,86254.0,86253.0,0.02358905]
[1765819664413,0.7793643,86251.0,86250.0,7e-08]
[1765819664612,0.8293643,86251.0,86250.0,7e-08]
[1765819664820,1.5509643,86251.0,86250.0,7e-08]
[1765819665115,0.6926156,86241.0,86240.0,0.20780633]
[1765819665315,0.6926156,86241.0,86229.0,1.70780633]
[1765819665316,0.6926171,86230.0,86229.0,1.70780633]
[1765819665504,1.0534171,86230.0,86229.0,0.77379633]
[1765819665700,1.0534171,86230.0,86229.0,0.79173356]
[1765819666119,1.0534171,86230.0,86229.0,2.08392723]
[1765819666309,1.05349853,86230.0,86229.0,2.08392723]
[1765819666512,1.05349853,86230.0,86229.0,1.51793723]
[1765819666816,1.05349853,86230.0,86229.0,0.01993723]
[1765819667114,1.05349853,86230.0,86229.0,0.02293723]
[1765819668510,1.25106853,86230.0,86229.0,0.02052353]
[1765819672019,1.05349853,86230.0,86229.0,0.02052353]
[1765819675427,1.05349853,86230.0,86229.0,0.16554249]
[1765819676217,1.05349853,86230.0,86229.0,0.02052353]
[1765819676614,1.05349853,86230.0,86229.0,0.16554249]
[1765819677022,1.05349853,86230.0,86229.0,0.02052353]
[1765819680730,1.05349853,86230.0,86229.0,0.37394353]
[1765819681030,1.78301853,86230.0,86229.0,0.37394353]
[1765819681618,1.78301853,86230.0,86229.0,0.02052353]
[1765819682018,1.05349853,86230.0,86229.0,0.02052353]
[1765819682218,1.78301853,86230.0,86229.0,0.91740353]
[1765819682414,0.36088143,86230.0,86229.0,0.91740353]
[1765819682619,0.72956143,86230.0,86229.0,0.91740353]
[1765819683030,8.143e-05,86230.0,86229.0,0.91740353]
[1765819683722,0.69967143,86230.0,86229.0,1.12520986]
[1765819684037,0.35724143,86230.0,86229.0,1.12520986]
[1765819684730,8.143e-05,86230.0,86229.0,1.12520986]
[1765819685226,0.69967143,86230.0,86229.0,0.91740353]
[1765819685427,0.69967143,86230.0,86229.0,1.12493889]
[1765819685823,0.69967143,86230.0,86229.0,0.22805889]
[1765819686229,0.35724143,86230.0,86229.0,0.91740353]
[1765819686531,0.69967143,86230.0,86229.0,0.02052353]
[1765819687031,0.69967143,86230.0,86229.0,0.22805889]
[1765819687632,0.73287741,86230.0,86229.0,0.02052353]
[1765819687832,0.69967143,86230.0,86229.0,0.02052353]
[1765819688230,0.69967143,86230.0,86229.0,0.35577353]
[1765819688430,0.69967143,86230.0,86229.0,0.02052353]
[1765819689133,0.73967143,86230.0,86229.0,0.02052353]
[1765819689529,0.75126853,86230.0,86229.0,0.91740353]
[1765819690431,0.75126853,86230.0,86229.0,0.35577353]
[1765819690636,0.04008143,86230.0,86229.0,0.92900073]
[1765819691025,8.143e-05,86230.0,86229.0,1.32900073]
[1765819691337,0.0001739,86238.0,86237.0,0.7036661]
[1765819691522,0.1301739,86238.0,86237.0,0.7036661]
[1765819692523,0.13025881,86238.0,86237.0,0.7046661]
[1765819692719,1.03901481,86238.0,86237.0,0.001]
[1765819693129,0.84144481,86238.0,86237.0,0.001]
[1765819693330,0.84144481,86238.0,86237.0,0.002]
[1765819693530,0.84144481,86238.0,86237.0,0.69407]
[1765819693934,0.82984881,86238.0,86237.0,0.69407]
[1765819694132,0.85941881,86238.0,86237.0,0.69407]
[1765819694632,0.13025881,86238.0,86237.0,0.69407]
[1765819695033,0.82984881,86238.0,86237.0,0.69407]
[1765819696332,0.48741881,86238.0,86237.0,0.69407]
[1765819696624,0.13025881,86238.0,86237.0,0.69407]
[1765819697226,0.13025881,86238.0,86237.0,1.05487]